[Event "Late-Titled-Tuesday-Blitz-April-02-2024"]
[Site "Chess.com"]
[Date "2024.04.02"]
[Round "5"]
[White "campochess"]
[Black "Kavyev_Ruslan"]
[Result "0-1"]
[WhiteElo "2183"]
[BlackElo "2402"]
[TimeControl "180+1"]
[EndTime "14:49:40 PDT"]
[Termination "Kavyev_Ruslan won by resignation"]

1. e4 {[%clk 0:02:59.9]} 1... c5 {[%clk 0:02:54.6]} 2. b4 {[%clk 0:02:59.3]}
2... cxb4 {[%clk 0:02:53.9]} 3. d4 {[%clk 0:02:59.3]} 3... d5 {[%clk 0:02:53.2]}
4. exd5 {[%clk 0:02:59.4]} 4... Nf6 {[%clk 0:02:52.8]} 5. c4 {[%clk 0:02:58.8]}
5... bxc3 {[%clk 0:02:52.5]} 6. Nxc3 {[%clk 0:02:58]} 6... Nxd5 {[%clk
0:02:51.6]} 7. Bb5+ {[%clk 0:02:54.3]} 7... Nc6 {[%clk 0:02:51.3]} 8. Bd2 {[%clk
0:02:51.7]} 8... Nxc3 {[%clk 0:02:49.7]} 9. Bxc3 {[%clk 0:02:51.3]} 9... e6
{[%clk 0:02:50.3]} 10. Nf3 {[%clk 0:02:50.1]} 10... a6 {[%clk 0:02:49.8]} 11.
Bxc6+ {[%clk 0:02:48.4]} 11... bxc6 {[%clk 0:02:50.7]} 12. O-O {[%clk
0:02:48.1]} 12... Qd5 {[%clk 0:02:43.8]} 13. Re1 {[%clk 0:02:45.6]} 13... Be7
{[%clk 0:02:43.3]} 14. Re5 {[%clk 0:02:45.4]} 14... Qd7 {[%clk 0:02:42.4]} 15.
Ra5 {[%clk 0:02:34]} 15... O-O {[%clk 0:02:39.6]} 16. Ne5 {[%clk 0:02:32.9]}
16... Qc7 {[%clk 0:02:35.6]} 17. Ra4 {[%clk 0:02:32.8]} 17... Bf6 {[%clk
0:02:34.7]} 18. Qe2 {[%clk 0:02:32.1]} 18... Bd7 {[%clk 0:02:23.9]} 19. Rc4
{[%clk 0:02:30.9]} 19... Qd6 {[%clk 0:02:22.8]} 20. Qe4 {[%clk 0:02:30]} 20...
Rac8 {[%clk 0:02:17.6]} 21. Bb4 {[%clk 0:02:29.8]} 21... Qd5 {[%clk 0:02:16.1]}
22. Bxf8 {[%clk 0:02:21.4]} 22... Qxe4 {[%clk 0:02:13.3]} 23. Bd6 {[%clk
0:02:13.5]} 23... Bxe5 {[%clk 0:02:12.1]} 24. Bxe5 {[%clk 0:02:11.3]} 24... c5
{[%clk 0:02:12.4]} 25. Rac1 {[%clk 0:02:08.5]} 25... f6 {[%clk 0:02:10.5]} 26.
Bg3 {[%clk 0:02:05.3]} 26... Bb5 {[%clk 0:01:48.5]} 27. Rxc5 {[%clk 0:02:03.9]}
27... Rxc5 {[%clk 0:01:46.3]} 28. dxc5 {[%clk 0:02:04.1]} 28... Bc6 {[%clk
0:01:46.1]} 0-1

[Event "Late-Titled-Tuesday-Blitz-April-02-2024"]
[Site "Chess.com"]
[Date "2024.04.02"]
[Round "5"]
[White "Byniolus"]
[Black "CatLoverPL"]
[Result "1-0"]
[WhiteElo "2775"]
[BlackElo "2501"]
[TimeControl "180+1"]
[EndTime "14:49:45 PDT"]
[Termination "Byniolus won by resignation"]

1. d4 {[%clk 0:03:00.9]} 1... g6 {[%clk 0:02:59.7]} 2. Nf3 {[%clk 0:03:00.6]}
2... Bg7 {[%clk 0:02:59.8]} 3. Bf4 {[%clk 0:03:01.2]} 3... c5 {[%clk 0:03:00]}
4. c3 {[%clk 0:03:01.4]} 4... cxd4 {[%clk 0:03:00.2]} 5. cxd4 {[%clk 0:03:02.3]}
5... d6 {[%clk 0:03:00.6]} 6. e3 {[%clk 0:03:02.7]} 6... Nf6 {[%clk 0:03:00.7]}
7. Nc3 {[%clk 0:03:01.9]} 7... O-O {[%clk 0:03:00.9]} 8. Be2 {[%clk 0:03:00.8]}
8... Nc6 {[%clk 0:03:01]} 9. O-O {[%clk 0:03:00.5]} 9... Bf5 {[%clk 0:02:59.6]}
10. Qb3 {[%clk 0:02:58]} 10... Qd7 {[%clk 0:02:58.4]} 11. Rfc1 {[%clk
0:02:57.1]} 11... Rfc8 {[%clk 0:02:57.5]} 12. h3 {[%clk 0:02:57.1]} 12... Ne4
{[%clk 0:02:57]} 13. Nxe4 {[%clk 0:02:53.3]} 13... Bxe4 {[%clk 0:02:57.9]} 14.
Ng5 {[%clk 0:02:52.2]} 14... d5 {[%clk 0:02:42.2]} 15. Nxe4 {[%clk 0:02:50.8]}
15... dxe4 {[%clk 0:02:42.4]} 16. Rc5 {[%clk 0:02:35.9]} 16... e6 {[%clk
0:02:33]} 17. Rac1 {[%clk 0:02:33.7]} 17... Ne7 {[%clk 0:02:30.9]} 18. Rc7
{[%clk 0:02:29.5]} 18... Rxc7 {[%clk 0:02:18.5]} 19. Rxc7 {[%clk 0:02:28.9]}
19... Qd8 {[%clk 0:02:16.1]} 20. Qxb7 {[%clk 0:02:14.6]} 20... Nd5 {[%clk
0:02:12]} 21. Rxf7 {[%clk 0:02:11]} 21... Bf8 {[%clk 0:02:11.2]} 22. Bg4 {[%clk
0:01:45.8]} 22... Nxf4 {[%clk 0:02:05.2]} 23. Rxf4 {[%clk 0:01:46.7]} 1-0

[Event "Late-Titled-Tuesday-Blitz-April-02-2024"]
[Site "Chess.com"]
[Date "2024.04.02"]
[Round "5"]
[White "Statham_01"]
[Black "Kiborg95"]
[Result "0-1"]
[WhiteElo "2615"]
[BlackElo "2851"]
[TimeControl "180+1"]
[EndTime "14:50:11 PDT"]
[Termination "Kiborg95 won by resignation"]

1. e4 {[%clk 0:02:57.3]} 1... d6 {[%clk 0:03:00.3]} 2. d4 {[%clk 0:02:57]} 2...
Nf6 {[%clk 0:03:00.9]} 3. Nc3 {[%clk 0:02:57.2]} 3... e5 {[%clk 0:03:01.6]} 4.
Nf3 {[%clk 0:02:56.7]} 4... Nbd7 {[%clk 0:03:01.9]} 5. g4 {[%clk 0:02:57.3]}
5... h6 {[%clk 0:03:01.7]} 6. Rg1 {[%clk 0:02:56.9]} 6... c6 {[%clk 0:03:02.2]}
7. h4 {[%clk 0:02:46.6]} 7... exd4 {[%clk 0:03:02.5]} 8. Nxd4 {[%clk 0:02:40.9]}
8... Ne5 {[%clk 0:03:02.8]} 9. g5 {[%clk 0:02:35.2]} 9... hxg5 {[%clk
0:03:03.7]} 10. hxg5 {[%clk 0:02:36.1]} 10... Nfg4 {[%clk 0:03:04.3]} 11. f4
{[%clk 0:02:05.1]} 11... Qb6 {[%clk 0:02:48.8]} 12. Na4 {[%clk 0:01:53.3]} 12...
Qxd4 {[%clk 0:02:47.1]} 13. Qxd4 {[%clk 0:01:43.2]} 13... Nf3+ {[%clk
0:02:47.5]} 14. Kd1 {[%clk 0:01:43.9]} 14... Nxd4 {[%clk 0:02:48.2]} 15. f5
{[%clk 0:01:36.7]} 15... Ne5 {[%clk 0:02:39.5]} 16. g6 {[%clk 0:01:34.6]} 16...
fxg6 {[%clk 0:02:39]} 17. Bf4 {[%clk 0:01:34.8]} 17... Ndf3 {[%clk 0:02:32.8]}
18. Rg3 {[%clk 0:01:34.5]} 18... gxf5 {[%clk 0:02:33.4]} 19. Bg2 {[%clk
0:01:33.1]} 19... fxe4 {[%clk 0:02:32.4]} 20. Nc3 {[%clk 0:01:33.2]} 20... d5
{[%clk 0:02:29.5]} 21. Ke2 {[%clk 0:01:33.7]} 21... Be6 {[%clk 0:02:18.2]} 22.
Rd1 {[%clk 0:01:26.9]} 22... O-O-O {[%clk 0:02:15.9]} 23. Na4 {[%clk 0:01:19.5]}
23... g5 {[%clk 0:02:10.8]} 24. Be3 {[%clk 0:01:18.8]} 24... b6 {[%clk
0:02:09.8]} 25. c4 {[%clk 0:01:19]} 25... Nxc4 {[%clk 0:02:07]} 26. Bf2 {[%clk
0:01:10.8]} 26... Bd6 {[%clk 0:02:05.3]} 27. Rxf3 {[%clk 0:01:08.7]} 0-1

[Event "Late-Titled-Tuesday-Blitz-April-02-2024"]
[Site "Chess.com"]
[Date "2024.04.02"]
[Round "5"]
[White "RaugintaBulba"]
[Black "Ar4uha"]
[Result "0-1"]
[WhiteElo "2427"]
[BlackElo "2599"]
[TimeControl "180+1"]
[EndTime "14:50:20 PDT"]
[Termination "Ar4uha won on time"]

1. d4 {[%clk 0:02:49.7]} 1... Nf6 {[%clk 0:02:46.8]} 2. c4 {[%clk 0:02:39.6]}
2... e6 {[%clk 0:02:47.1]} 3. Nf3 {[%clk 0:02:38.7]} 3... b6 {[%clk 0:02:47.2]}
4. g3 {[%clk 0:02:38.7]} 4... Ba6 {[%clk 0:02:47.7]} 5. b3 {[%clk 0:02:38.3]}
5... d5 {[%clk 0:02:48.2]} 6. cxd5 {[%clk 0:02:36.7]} 6... exd5 {[%clk
0:02:47.2]} 7. Bg2 {[%clk 0:02:37.2]} 7... Nbd7 {[%clk 0:02:47.9]} 8. Bb2 {[%clk
0:02:36.8]} 8... Bd6 {[%clk 0:02:39.7]} 9. Ne5 {[%clk 0:02:26.8]} 9... c5 {[%clk
0:02:38.5]} 10. Nxd7 {[%clk 0:02:22.3]} 10... Qxd7 {[%clk 0:02:37.4]} 11. dxc5
{[%clk 0:02:17.7]} 11... Bxc5 {[%clk 0:02:37.2]} 12. Bxf6 {[%clk 0:02:11.4]}
12... gxf6 {[%clk 0:02:37.2]} 13. Qxd5 {[%clk 0:02:11.7]} 13... Qxd5 {[%clk
0:02:35.1]} 14. Bxd5 {[%clk 0:02:11.6]} 14... O-O-O {[%clk 0:02:35.7]} 15. e4
{[%clk 0:01:50.7]} 15... Bd4 {[%clk 0:02:33.7]} 0-1

[Event "Late-Titled-Tuesday-Blitz-April-02-2024"]
[Site "Chess.com"]
[Date "2024.04.02"]
[Round "5"]
[White "HajiyevKanan"]
[Black "WindWhistler11"]
[Result "1-0"]
[WhiteElo "2611"]
[BlackElo "2442"]
[TimeControl "180+1"]
[EndTime "14:50:41 PDT"]
[Termination "HajiyevKanan won by resignation"]

1. d4 {[%clk 0:03:00.3]} 1... e6 {[%clk 0:02:59.3]} 2. Nf3 {[%clk 0:02:59.3]}
2... Nf6 {[%clk 0:02:59]} 3. c4 {[%clk 0:02:59.7]} 3... c5 {[%clk 0:02:58.9]} 4.
e3 {[%clk 0:02:59.7]} 4... b6 {[%clk 0:02:58]} 5. Be2 {[%clk 0:02:58.4]} 5...
cxd4 {[%clk 0:02:56.4]} 6. Nxd4 {[%clk 0:02:58.3]} 6... Bb7 {[%clk 0:02:54.6]}
7. O-O {[%clk 0:02:58.3]} 7... Be7 {[%clk 0:02:52.3]} 8. b3 {[%clk 0:02:57.9]}
8... O-O {[%clk 0:02:46.3]} 9. Bb2 {[%clk 0:02:58.1]} 9... d6 {[%clk 0:02:43.9]}
10. Nc3 {[%clk 0:02:58.4]} 10... Na6 {[%clk 0:02:37]} 11. Bf3 {[%clk 0:02:58.5]}
11... Qd7 {[%clk 0:02:35.5]} 12. Bxb7 {[%clk 0:02:58.1]} 12... Qxb7 {[%clk
0:02:36.4]} 13. Rc1 {[%clk 0:02:56]} 13... Rac8 {[%clk 0:02:36.5]} 14. Qe2
{[%clk 0:02:52.7]} 14... Rfd8 {[%clk 0:02:36.7]} 15. Rfd1 {[%clk 0:02:52.7]}
15... h6 {[%clk 0:02:26.1]} 16. Kh1 {[%clk 0:02:49.1]} 16... Nc5 {[%clk
0:02:19.9]} 17. f3 {[%clk 0:02:48.3]} 17... d5 {[%clk 0:02:17.7]} 18. cxd5
{[%clk 0:02:47.9]} 18... Nxd5 {[%clk 0:02:17.9]} 19. Nxd5 {[%clk 0:02:46.5]}
19... Rxd5 {[%clk 0:02:14.8]} 20. e4 {[%clk 0:02:44.2]} 20... Rdd8 {[%clk
0:02:07.5]} 21. Nc2 {[%clk 0:02:32.7]} 21... Qa6 {[%clk 0:01:57.8]} 22. Qxa6
{[%clk 0:02:27.3]} 22... Nxa6 {[%clk 0:01:58.7]} 23. Ne3 {[%clk 0:02:10]} 23...
Rxc1 {[%clk 0:01:54.2]} 24. Bxc1 {[%clk 0:02:01.5]} 24... Rxd1+ {[%clk
0:01:53.5]} 25. Nxd1 {[%clk 0:02:01.8]} 25... Nb4 {[%clk 0:01:54.2]} 26. Ba3
{[%clk 0:01:53]} 26... Kf8 {[%clk 0:01:45.4]} 27. Bxb4 {[%clk 0:01:52.2]} 27...
Bxb4 {[%clk 0:01:46.3]} 28. Kg1 {[%clk 0:01:52.8]} 28... Ke7 {[%clk 0:01:41.7]}
29. Kf2 {[%clk 0:01:53.1]} 29... Kd6 {[%clk 0:01:40]} 30. Ke3 {[%clk 0:01:53.4]}
30... Bc5+ {[%clk 0:01:25.2]} 31. Kd3 {[%clk 0:01:53.8]} 31... Bg1 {[%clk
0:01:21.7]} 32. h3 {[%clk 0:01:53.9]} 32... Ke5 {[%clk 0:01:22.1]} 33. Nc3
{[%clk 0:01:52]} 33... Kf4 {[%clk 0:01:20.6]} 34. Ne2+ {[%clk 0:01:52.1]} 1-0

[Event "Late-Titled-Tuesday-Blitz-April-02-2024"]
[Site "Chess.com"]
[Date "2024.04.02"]
[Round "5"]
[White "cthake"]
[Black "APOKALIPSA13"]
[Result "0-1"]
[WhiteElo "1823"]
[BlackElo "2292"]
[TimeControl "180+1"]
[EndTime "14:51:10 PDT"]
[Termination "APOKALIPSA13 won by resignation"]

1. e4 {[%clk 0:03:00.9]} 1... e5 {[%clk 0:03:00.9]} 2. f4 {[%clk 0:02:55.6]}
2... exf4 {[%clk 0:03:00.2]} 3. Nf3 {[%clk 0:02:55.8]} 3... g5 {[%clk
0:03:00.5]} 4. h4 {[%clk 0:02:52.3]} 4... g4 {[%clk 0:03:00.1]} 5. Ng5 {[%clk
0:02:52.5]} 5... h6 {[%clk 0:02:58.3]} 6. Nxf7 {[%clk 0:02:52.1]} 6... Kxf7
{[%clk 0:02:58.1]} 7. Bc4+ {[%clk 0:02:52.7]} 7... d5 {[%clk 0:02:56.9]} 8.
Bxd5+ {[%clk 0:02:52.2]} 8... Be6 {[%clk 0:02:56.3]} 9. Bxb7 {[%clk 0:02:50]}
9... Nd7 {[%clk 0:02:53.2]} 10. Bxa8 {[%clk 0:02:31.2]} 10... Qxa8 {[%clk
0:02:54.1]} 11. d3 {[%clk 0:02:30]} 11... Bd6 {[%clk 0:02:50]} 12. O-O {[%clk
0:02:28.1]} 12... f3 {[%clk 0:02:47.2]} 13. gxf3 {[%clk 0:02:20.8]} 13... g3
{[%clk 0:02:46.6]} 14. f4 {[%clk 0:02:19.1]} 14... Ngf6 {[%clk 0:02:36.8]} 15.
e5 {[%clk 0:02:17.4]} 15... Bg4 {[%clk 0:02:27.3]} 16. Qe1 {[%clk 0:02:13.8]}
16... Bc5+ {[%clk 0:02:20.9]} 17. Be3 {[%clk 0:02:10.1]} 17... Nh5 {[%clk
0:02:06.9]} 18. d4 {[%clk 0:01:59.3]} 18... Bb6 {[%clk 0:02:00.3]} 19. Nd2
{[%clk 0:01:40.6]} 19... Re8 {[%clk 0:01:44.6]} 20. f5 {[%clk 0:01:36.5]} 20...
Nxe5 {[%clk 0:01:28.6]} 21. dxe5 {[%clk 0:01:10.2]} 21... Rxe5 {[%clk
0:01:29.5]} 22. Nc4 {[%clk 0:01:10.2]} 22... Rxe3 {[%clk 0:01:28.7]} 23. Nxe3
{[%clk 0:01:09.7]} 23... Bh3 {[%clk 0:01:28.3]} 24. Qe2 {[%clk 0:00:59]} 24...
Bxe3+ {[%clk 0:01:26.4]} 0-1

[Event "Late-Titled-Tuesday-Blitz-April-02-2024"]
[Site "Chess.com"]
[Date "2024.04.02"]
[Round "5"]
[White "MasterofMasters2006"]
[Black "SmirnovTimofey2000"]
[Result "1-0"]
[WhiteElo "2236"]
[BlackElo "1935"]
[TimeControl "180+1"]
[EndTime "14:51:10 PDT"]
[Termination "MasterofMasters2006 won by resignation"]

1. e4 {[%clk 0:03:00.9]} 1... e5 {[%clk 0:02:29.4]} 2. Nf3 {[%clk 0:03:00]} 2...
Nf6 {[%clk 0:02:28.7]} 3. Nxe5 {[%clk 0:02:48.2]} 3... d6 {[%clk 0:02:28.4]} 4.
Nf3 {[%clk 0:02:47.8]} 4... Nxe4 {[%clk 0:02:28.4]} 5. d4 {[%clk 0:02:48.7]}
5... d5 {[%clk 0:02:28.5]} 6. Bd3 {[%clk 0:02:49.6]} 6... Nc6 {[%clk 0:02:28.2]}
7. O-O {[%clk 0:02:50.5]} 7... Be7 {[%clk 0:02:25.1]} 8. Re1 {[%clk 0:02:50.9]}
8... Bg4 {[%clk 0:02:23.4]} 9. c3 {[%clk 0:02:41.9]} 9... f5 {[%clk 0:02:22.3]}
10. h3 {[%clk 0:02:35.5]} 10... Bh5 {[%clk 0:02:18.7]} 11. Nbd2 {[%clk
0:02:28.1]} 11... O-O {[%clk 0:02:16.2]} 12. Qb3 {[%clk 0:02:23.4]} 12... Rf6
{[%clk 0:01:44.8]} 13. Nxe4 {[%clk 0:01:42]} 13... fxe4 {[%clk 0:01:41.8]} 14.
Bxe4 {[%clk 0:01:35.5]} 14... Kh8 {[%clk 0:01:31.6]} 15. Qxd5 {[%clk 0:01:34]}
15... Bxf3 {[%clk 0:01:25.8]} 16. Bxf3 {[%clk 0:01:32.5]} 16... Qf8 {[%clk
0:01:06.7]} 17. Bg5 {[%clk 0:01:20.2]} 17... Rd6 {[%clk 0:00:58.1]} 18. Bxe7
{[%clk 0:01:18.7]} 18... Nxe7 {[%clk 0:00:56.2]} 19. Qxb7 {[%clk 0:01:15.9]}
19... Rb8 {[%clk 0:00:56]} 20. Qxc7 {[%clk 0:01:14.3]} 20... Rdb6 {[%clk
0:00:46.9]} 1-0

[Event "Late-Titled-Tuesday-Blitz-April-02-2024"]
[Site "Chess.com"]
[Date "2024.04.02"]
[Round "5"]
[White "Mikhal867"]
[Black "MikaelyanArman"]
[Result "0-1"]
[WhiteElo "2516"]
[BlackElo "2814"]
[TimeControl "180+1"]
[EndTime "14:51:15 PDT"]
[Termination "MikaelyanArman won on time"]

1. e4 {[%clk 0:00:16]} 1... c5 {[%clk 0:02:55.3]} 2. Nf3 {[%clk 0:00:15.4]} 2...
b6 {[%clk 0:02:53.3]} 3. d3 {[%clk 0:00:15.8]} 3... Bb7 {[%clk 0:02:53.4]} 4.
Nbd2 {[%clk 0:00:16.1]} 4... e6 {[%clk 0:02:53.6]} 5. g3 {[%clk 0:00:16.7]} 5...
Nf6 {[%clk 0:02:52.6]} 6. Bg2 {[%clk 0:00:17.3]} 6... d5 {[%clk 0:02:51.4]} 7.
e5 {[%clk 0:00:17.6]} 7... Nfd7 {[%clk 0:02:51.4]} 8. O-O {[%clk 0:00:17.8]}
8... Nc6 {[%clk 0:02:52]} 9. Re1 {[%clk 0:00:18.1]} 9... g5 {[%clk 0:02:52.7]}
10. h3 {[%clk 0:00:14.3]} 10... h5 {[%clk 0:02:53]} 11. Nf1 {[%clk 0:00:13.3]}
11... g4 {[%clk 0:02:52.8]} 12. Bg5 {[%clk 0:00:11.8]} 12... Be7 {[%clk
0:02:40.5]} 13. Bxe7 {[%clk 0:00:11.5]} 13... Qxe7 {[%clk 0:02:41.4]} 14. Nh4
{[%clk 0:00:11]} 14... Ndxe5 {[%clk 0:02:37.9]} 15. c3 {[%clk 0:00:10.1]} 15...
gxh3 {[%clk 0:02:24.5]} 16. Bxh3 {[%clk 0:00:08.8]} 16... Rg8 {[%clk 0:02:12.1]}
17. Nf5 {[%clk 0:00:08.8]} 17... exf5 {[%clk 0:02:02.6]} 18. d4 {[%clk 0:00:09]}
18... O-O-O {[%clk 0:02:02.8]} 19. dxe5 {[%clk 0:00:08.6]} 19... Kb8 {[%clk
0:02:03.2]} 20. f4 {[%clk 0:00:07.9]} 20... h4 {[%clk 0:02:00]} 21. Bxf5 {[%clk
0:00:07.8]} 21... hxg3 {[%clk 0:01:59.6]} 22. Kg2 {[%clk 0:00:07.7]} 22... Qh4
{[%clk 0:01:56.9]} 23. Bh3 {[%clk 0:00:06.1]} 23... d4 {[%clk 0:01:55]} 0-1

[Event "Late-Titled-Tuesday-Blitz-April-02-2024"]
[Site "Chess.com"]
[Date "2024.04.02"]
[Round "5"]
[White "Charodej1"]
[Black "MoldyTofu"]
[Result "1-0"]
[WhiteElo "2392"]
[BlackElo "2054"]
[TimeControl "180+1"]
[EndTime "14:51:43 PDT"]
[Termination "Charodej1 won by resignation"]

1. Nf3 {[%clk 0:03:00.9]} 1... c5 {[%clk 0:02:55.9]} 2. e4 {[%clk 0:02:59.7]}
2... d6 {[%clk 0:02:56.3]} 3. d4 {[%clk 0:02:56.6]} 3... cxd4 {[%clk 0:02:57.2]}
4. Qxd4 {[%clk 0:02:56.7]} 4... Nf6 {[%clk 0:02:57.9]} 5. Nc3 {[%clk 0:02:56]}
5... Nc6 {[%clk 0:02:57.8]} 6. Bb5 {[%clk 0:02:56]} 6... Bd7 {[%clk 0:02:53.9]}
7. Bxc6 {[%clk 0:02:55.6]} 7... Bxc6 {[%clk 0:02:53.6]} 8. Bg5 {[%clk
0:02:56.2]} 8... e5 {[%clk 0:02:50.9]} 9. Qd3 {[%clk 0:02:54.7]} 9... Be7 {[%clk
0:02:51.2]} 10. Bxf6 {[%clk 0:02:49.7]} 10... Bxf6 {[%clk 0:02:50.2]} 11. Nd2
{[%clk 0:02:50]} 11... Qc7 {[%clk 0:02:48.5]} 12. Nc4 {[%clk 0:02:49.6]} 12...
Rd8 {[%clk 0:02:45.7]} 13. Ne3 {[%clk 0:02:49.4]} 13... Qb6 {[%clk 0:02:37.7]}
14. O-O {[%clk 0:02:30.2]} 14... Bg5 {[%clk 0:02:19.9]} 15. Ned5 {[%clk
0:02:22.7]} 15... Bxd5 {[%clk 0:02:16.4]} 16. Nxd5 {[%clk 0:01:56.3]} 16... Qc6
{[%clk 0:02:06.7]} 17. c4 {[%clk 0:01:36]} 17... O-O {[%clk 0:01:54.6]} 18. Rad1
{[%clk 0:01:31.7]} 18... Rfe8 {[%clk 0:01:44.4]} 19. b3 {[%clk 0:01:19.8]} 19...
a6 {[%clk 0:01:28.6]} 20. Qg3 {[%clk 0:01:19.2]} 20... Be7 {[%clk 0:01:25.5]}
21. Rd3 {[%clk 0:01:06.1]} 21... b5 {[%clk 0:01:20.4]} 22. cxb5 {[%clk
0:01:05.7]} 22... axb5 {[%clk 0:01:17.5]} 23. Rfd1 {[%clk 0:01:04]} 23... Kh8
{[%clk 0:01:12.1]} 24. h3 {[%clk 0:00:58.8]} 24... Bf8 {[%clk 0:01:08.6]} 25.
Qe3 {[%clk 0:00:55.9]} 25... Ra8 {[%clk 0:00:58.5]} 26. Rc1 {[%clk 0:00:55.9]}
26... Qb7 {[%clk 0:00:46.8]} 27. Nc7 {[%clk 0:00:53.6]} 27... Rec8 {[%clk
0:00:46.1]} 28. Nxa8 {[%clk 0:00:53.5]} 1-0

[Event "Late-Titled-Tuesday-Blitz-April-02-2024"]
[Site "Chess.com"]
[Date "2024.04.02"]
[Round "5"]
[White "sorch29"]
[Black "ahkashefi2800"]
[Result "0-1"]
[WhiteElo "2430"]
[BlackElo "2600"]
[TimeControl "180+1"]
[EndTime "14:51:47 PDT"]
[Termination "ahkashefi2800 won by resignation"]

1. c4 {[%clk 0:03:00.9]} 1... c5 {[%clk 0:02:38.9]} 2. Nf3 {[%clk 0:03:00.1]}
2... b6 {[%clk 0:02:36.8]} 3. d4 {[%clk 0:02:59]} 3... cxd4 {[%clk 0:02:35.6]}
4. Nxd4 {[%clk 0:02:59.9]} 4... Bb7 {[%clk 0:02:34.6]} 5. Nc3 {[%clk 0:03:00.3]}
5... Nf6 {[%clk 0:02:34.5]} 6. f3 {[%clk 0:02:59.9]} 6... e6 {[%clk 0:02:34]} 7.
e4 {[%clk 0:02:59.6]} 7... d6 {[%clk 0:02:34.2]} 8. Be3 {[%clk 0:03:00.1]} 8...
Be7 {[%clk 0:02:34.2]} 9. Rc1 {[%clk 0:02:55.9]} 9... Nbd7 {[%clk 0:02:30.6]}
10. Be2 {[%clk 0:02:50.7]} 10... O-O {[%clk 0:02:31]} 11. O-O {[%clk 0:02:51.1]}
11... a6 {[%clk 0:02:29.4]} 12. Qd2 {[%clk 0:02:43.4]} 12... Rc8 {[%clk
0:02:28.8]} 13. b3 {[%clk 0:02:38.6]} 13... Qc7 {[%clk 0:02:27.2]} 14. Rfe1
{[%clk 0:02:36.5]} 14... Rfe8 {[%clk 0:02:20.5]} 15. Bf1 {[%clk 0:02:36.5]}
15... Qb8 {[%clk 0:02:19.9]} 16. Qf2 {[%clk 0:02:26.7]} 16... Bd8 {[%clk
0:02:14.1]} 17. Kh1 {[%clk 0:02:13.3]} 17... Bc7 {[%clk 0:02:10.6]} 18. Qg1
{[%clk 0:01:45.7]} 18... Ne5 {[%clk 0:02:07.5]} 19. Nde2 {[%clk 0:01:39.3]}
19... Nd3 {[%clk 0:02:02.9]} 20. Bxb6 {[%clk 0:01:23.9]} 20... Nxe1 {[%clk
0:02:00.7]} 21. Rxe1 {[%clk 0:01:20.6]} 21... d5 {[%clk 0:01:58.4]} 22. exd5
{[%clk 0:01:13.3]} 22... exd5 {[%clk 0:01:57]} 23. Bxc7 {[%clk 0:01:05.7]} 23...
Rxc7 {[%clk 0:01:56.3]} 24. Nxd5 {[%clk 0:00:52.1]} 24... Bxd5 {[%clk
0:01:55.5]} 25. cxd5 {[%clk 0:00:53]} 25... Nxd5 {[%clk 0:01:55.9]} 26. Rb1
{[%clk 0:00:38.8]} 26... Ne3 {[%clk 0:01:54.8]} 27. Ng3 {[%clk 0:00:31.5]} 27...
Rc2 {[%clk 0:01:50.8]} 28. Bxa6 {[%clk 0:00:22.6]} 28... Rxg2 {[%clk 0:01:47.4]}
29. Qe1 {[%clk 0:00:02.4]} 29... Rxa2 {[%clk 0:01:47]} 30. Bc4 {[%clk
0:00:02.3]} 30... Nxc4 {[%clk 0:01:46.9]} 31. bxc4 {[%clk 0:00:02.6]} 31...
Rxe1+ {[%clk 0:01:45.8]} 32. Rxe1 {[%clk 0:00:03.5]} 0-1

[Event "Late-Titled-Tuesday-Blitz-April-02-2024"]
[Site "Chess.com"]
[Date "2024.04.02"]
[Round "5"]
[White "KaydenTroffChess"]
[Black "ninguno46"]
[Result "1-0"]
[WhiteElo "2845"]
[BlackElo "2593"]
[TimeControl "180+1"]
[EndTime "14:51:53 PDT"]
[Termination "KaydenTroffChess won by resignation"]

1. d4 {[%clk 0:03:00.9]} 1... Nf6 {[%clk 0:02:57.7]} 2. Nf3 {[%clk 0:03:00.4]}
2... e6 {[%clk 0:02:56.9]} 3. Bf4 {[%clk 0:03:00.4]} 3... b6 {[%clk 0:02:54.6]}
4. e3 {[%clk 0:03:00.4]} 4... Bb7 {[%clk 0:02:54.8]} 5. Nbd2 {[%clk 0:03:01]}
5... Be7 {[%clk 0:02:55.1]} 6. Bd3 {[%clk 0:03:00]} 6... O-O {[%clk 0:02:55]} 7.
Qe2 {[%clk 0:02:56.9]} 7... c5 {[%clk 0:02:55]} 8. c3 {[%clk 0:02:57.3]} 8...
cxd4 {[%clk 0:02:54]} 9. exd4 {[%clk 0:02:58.1]} 9... d6 {[%clk 0:02:53.2]} 10.
O-O {[%clk 0:02:47.6]} 10... Nbd7 {[%clk 0:02:51]} 11. Rad1 {[%clk 0:02:45.3]}
11... Qc7 {[%clk 0:02:49.9]} 12. Rfe1 {[%clk 0:02:42.4]} 12... Rfe8 {[%clk
0:02:49.4]} 13. Bg3 {[%clk 0:02:42]} 13... Bf8 {[%clk 0:02:48.9]} 14. Bb1 {[%clk
0:02:40.9]} 14... a6 {[%clk 0:02:48]} 15. Bh4 {[%clk 0:02:38.8]} 15... g6 {[%clk
0:02:42]} 16. a3 {[%clk 0:02:35.3]} 16... b5 {[%clk 0:02:40.9]} 17. Ne4 {[%clk
0:02:28.2]} 17... Nxe4 {[%clk 0:02:39.2]} 18. Bxe4 {[%clk 0:02:29.1]} 18... Bxe4
{[%clk 0:02:36.4]} 19. Qxe4 {[%clk 0:02:29.6]} 19... Nb6 {[%clk 0:02:32.7]} 20.
Bg5 {[%clk 0:02:23.8]} 20... a5 {[%clk 0:02:22.7]} 21. Qh4 {[%clk 0:02:22.3]}
21... Bg7 {[%clk 0:02:14.4]} 22. Bh6 {[%clk 0:02:20.6]} 22... f6 {[%clk
0:02:09]} 23. Bxg7 {[%clk 0:02:08.8]} 23... Qxg7 {[%clk 0:02:07.8]} 24. Nd2
{[%clk 0:02:07.2]} 24... d5 {[%clk 0:02:02.3]} 25. Nb3 {[%clk 0:02:05]} 25...
Na4 {[%clk 0:01:55.8]} 26. Re2 {[%clk 0:02:03]} 26... Qf7 {[%clk 0:01:49.3]} 27.
Rde1 {[%clk 0:02:00.9]} 27... Kg7 {[%clk 0:01:47.8]} 28. h3 {[%clk 0:01:55.3]}
28... Ra6 {[%clk 0:01:46.9]} 29. Qg3 {[%clk 0:01:53.3]} 29... Qd7 {[%clk
0:01:34.5]} 30. h4 {[%clk 0:01:48.2]} 30... h5 {[%clk 0:01:33.1]} 31. Nc1 {[%clk
0:01:43.8]} 31... Rc6 {[%clk 0:01:26.8]} 32. Nd3 {[%clk 0:01:42.6]} 32... Qf7
{[%clk 0:01:20]} 33. Nf4 {[%clk 0:01:38.5]} 33... Kh7 {[%clk 0:01:00.2]} 34. Qd3
{[%clk 0:01:33]} 34... Rb8 {[%clk 0:00:47.3]} 35. Nxe6 {[%clk 0:01:26]} 35... b4
{[%clk 0:00:43.8]} 36. Ng5+ {[%clk 0:01:08]} 36... fxg5 {[%clk 0:00:43]} 37. Re7
{[%clk 0:01:08.6]} 37... Rb7 {[%clk 0:00:43.6]} 38. Rxf7+ {[%clk 0:01:08.1]} 1-0